[Event "FIDE Open World Rapid 2024"]
[Site "New York"]
[Date "2024.12.27"]
[Round "6.26"]
[White "Nepomniachtchi, Ian"]
[Black "Rakhmanov, Aleksandr"]
[Result "1-0"]
[ECO "B01"]
[WhiteElo "2755"]
[BlackElo "2585"]
[Annotator "TA"]
[PlyCount "111"]
[EventDate "2024.12.14"]
[EventType "swiss"]
[EventCountry "USA"]
[SourceTitle "playchess.com"]
[Source "ChessBase"]
[SourceQuality "1"]
[TimeControl "900+10"]

{[%evp 33,111,45,46,43,45,32,33,19,20,20,20,18,20,17,28,0,0,0,0,0,0,0,0,0,0,0,0,0,0,0,0,0,0,-170,-148,-171,-162,-185,-10,-11,-22,-29,0,0,8,8,8,8,8,8,8,8,25,27,131,168,221,181,1322,1144,29954,29954,29956,29954,29956,29957,29962,29962,29957,29960,29963,29964,29974,29975,29974,29976,29977,29978,29977,29977]} 1. e4 {[%emt 0:00:03]} d5 {[%emt 0:00:25]} 2. exd5 {[%emt 0:00:02]} Qxd5 {[%emt 0:00:02]} 3. Nc3 {[%emt 0:00:03]} Qd8 {[%emt 0:00:01]} 4. d4 {[%emt 0:00:02]} Nf6 {[%emt 0:00:02]} 5. Nf3 {[%emt 0:00:02]} Bg4 {[%emt 0:00:03]} 6. h3 {[%emt 0:00:02]} Bxf3 {[%emt 0:00:01] B01: Scandinavian Defence.} 7. Qxf3 {[%emt 0:00:02]} c6 {[%emt 0:00:02]} 8. g4 {[%emt 0:00:01]} h6 {[%emt 0:00:01]} 9. Be3 {[%emt 0:01:09]} e6 {[%emt 0:00:03]} 10. a3 $146 {[%emt 0:01:53]} ({Predecessor:} 10. O-O-O Bb4 11. Ne4 Nxe4 12. Qxe4 Qd5 13. Qxd5 cxd5 14. Bd3 Nc6 15. f4 Be7 16. c3 {½-½ Urazayev,A (2466)-Rakhmanov,A (2596) Karaganda Akim Cup 2024 (6)}) 10... Nd5 {[%emt 0:01:25]} 11. Nxd5 {[%emt 0:00:22]} Qxd5 {[%emt 0:01:18]} 12. Bg2 {[%emt 0:00:02]} Bd6 {[%emt 0:01:57]} 13. O-O {[%emt 0:00:25]} Qxf3 {[%emt 0:00:24]} 14. Bxf3 {[%emt 0:00:01]} Nd7 {[%emt 0:00:11]} 15. c4 {[%emt 0:00:09]} a6 {[%emt 0:01:23]} 16. b4 {[%emt 0:00:07]} Ke7 {[%emt 0:00:54]} 17. Rfe1 {[%emt 0:00:55]} Rac8 {[%emt 0:00:34]} 18. Rab1 {[%emt 0:00:11]} Nf6 {[%emt 0:00:11]} 19. a4 {[%emt 0:00:04]} b5 $1 {[%emt 0:02:02]} 20. axb5 {[%emt 0:07:20]} axb5 {[%emt 0:00:07]} 21. c5 {[%emt 0:01:24]} Bb8 {[%emt 0:00:21]} 22. Ra1 {[%emt 0:00:02]} Kd7 {[%emt 0:00:17]} 23. Ra6 {[%emt 0:00:09]} Nd5 {[%emt 0:00:21]} 24. Bxd5 {[%emt 0:00:03]} exd5 {[%emt 0:00:50]} 25. Rea1 {[%emt 0:00:01]} g5 {[%emt 0:02:37]} 26. Kg2 {[%emt 0:00:08]} f6 {[%emt 0:01:13]} 27. h4 {[%emt 0:00:48]} gxh4 {[%emt 0:00:25]} 28. Kh3 {[%emt 0:00:39]} h5 {[%emt 0:00:07]} 29. gxh5 {[%emt 0:00:18]} Rxh5 {[%emt 0:00:15]} 30. Rb6 {[%emt 0:00:01]} Rhh8 {[%emt 0:01:16]} 31. Rg1 {[%emt 0:00:54]} Rcg8 {[%emt 0:00:53]} 32. Rb7+ {[%emt 0:00:26]} Ke6 {[%emt 0:00:11]} 33. Re1 $2 {[%emt 0:00:22]} (33. Ra1 $1 $11) 33... Kf5 $19 {[%emt 0:00:02]} 34. Rb6 {[%emt 0:00:08]} Rc8 {[%emt 0:00:24]} 35. Bd2 {[%emt 0:00:15]} Bf4 $2 {[%emt 0:00:25]} (35... Rhg8 $19 {aiming for ...Rg4.} 36. Rb7 Bf4 37. Bxf4 Kxf4) 36. Bxf4 $11 {[%emt 0:00:15]} Kxf4 {[%emt 0:00:01]} 37. Re6 {[%emt 0:00:01]} f5 {[%emt 0:00:02]} 38. Rbxc6 {[%emt 0:00:11]} Rxc6 {[%emt 0:00:08]} 39. Rxc6 {[%emt 0:00:01]} Ke4 {[%emt 0:00:07]} 40. Rb6 {[%emt 0:00:06]} Kxd4 {[%emt 0:00:09]} 41. Rxb5 {[%emt 0:00:00]} Kc4 {[%emt 0:00:11]} 42. Rb7 {[%emt 0:00:01]} Rc8 {[%emt 0:00:26]} (42... d4 {keeps more tension.} 43. c6 d3 44. Rd7 Rc8) 43. Kxh4 {[%emt 0:00:06]} d4 {[%emt 0:00:01]} (43... Kc3 $11) 44. Kg5 $16 {[%emt 0:00:09]} d3 {[%emt 0:00:08] [#]} 45. Rd7 $1 {[%emt 0:00:01]} (45. Kxf5 Rd8 46. Rh7 d2 $19 (46... Kxb4 47. c6 $11)) 45... Kxb4 $2 {[%emt 0:00:30]} (45... f4) 46. Rxd3 $18 {[%emt 0:00:02]} ({Worse is} 46. Kxf5 Kc3 $11 (46... Rxc5+ 47. Ke4 $11)) 46... Rxc5 {[%emt 0:00:05]} 47. f4 {[%emt 0:00:03]} Kc4 {[%emt 0:00:16]} 48. Rd6 {[%emt 0:00:10]} Ra5 {[%emt 0:00:09]} 49. Rf6 {[%emt 0:00:16]} Kd4 {[%emt 0:00:11]} 50. Rxf5 {[%emt 0:00:02]} Ra8 {[%emt 0:00:05]} 51. Rf7 {[%emt 0:00:04]} Ke4 {[%emt 0:00:06]} 52. Re7+ {[%emt 0:00:01]} Kf3 {[%emt 0:00:01]} 53. f5 {[%emt 0:00:11]} Rg8+ {[%emt 0:00:01]} 54. Kh6 {[%emt 0:00:08]} Kf4 {[%emt 0:00:13]} 55. f6 {[%emt 0:00:00]} Kf5 {[%emt 0:00:02]} 56. f7 {[%emt 0:00:01]} 1-0

[Event "FIDE Open World Rapid 2024"]
[Site "New York"]
[Date "2024.12.27"]
[Round "6.26"]
[White "Karthik Venkataraman"]
[Black "Chanda, Sandipan"]
[Result "1-0"]
[ECO "B90"]
[WhiteElo "2603"]
[BlackElo "2480"]
[Annotator "ChessBase"]
[PlyCount "101"]
[EventDate "2024.12.14"]
[EventType "swiss"]
[EventCountry "USA"]
[SourceTitle "playchess.com"]
[Source "ChessBase"]
[SourceQuality "1"]
[TimeControl "900+10"]

1. e4 {[%emt 0:00:02]} c5 {[%emt 0:00:02]} 2. Nf3 {[%emt 0:00:01]} d6 {[%emt 0:00:01]} 3. d4 {[%emt 0:00:01]} cxd4 {[%emt 0:00:02]} 4. Nxd4 {[%emt 0:00:02]} Nf6 {[%emt 0:00:02]} 5. Nc3 {[%emt 0:00:02]} a6 {[%emt 0:00:01]} 6. Nb3 {[%emt 0:00:01]} Nbd7 {[%emt 0:00:06]} 7. g4 {[%emt 0:00:05]} h6 {[%emt 0:00:03]} 8. Bg2 {[%emt 0:00:22]} b5 {[%emt 0:00:11]} 9. a3 {[%emt 0:00:05]} Bb7 {[%emt 0:01:42]} 10. h4 {[%emt 0:00:03]} Nc5 {[%emt 0:00:44]} 11. Nxc5 {[%emt 0:00:23]} dxc5 {[%emt 0:00:01]} 12. Qe2 {[%emt 0:00:02]} e6 {[%emt 0:00:35]} 13. Bf4 {[%emt 0:00:33]} Be7 {[%emt 0:01:32]} 14. g5 {[%emt 0:00:23]} hxg5 {[%emt 0:00:03]} 15. hxg5 {[%emt 0:00:01]} Rxh1+ {[%emt 0:00:02]} 16. Bxh1 {[%emt 0:00:02]} Nd7 {[%emt 0:00:05]} 17. Qh5 {[%emt 0:00:07]} b4 {[%emt 0:01:36]} 18. Ne2 {[%emt 0:00:40]} Nf8 {[%emt 0:00:42]} 19. Qh8 {[%emt 0:01:14]} g6 {[%emt 0:02:31]} 20. Qe5 {[%emt 0:02:37]} Rc8 {[%emt 0:02:26]} 21. Rd1 {[%emt 0:00:25]} Qa5 {[%emt 0:01:02]} 22. axb4 {[%emt 0:00:03]} Qxb4+ {[%emt 0:00:02]} 23. Bd2 {[%emt 0:00:05]} Qb6 {[%emt 0:00:10]} 24. Bc3 {[%emt 0:00:02]} Qc7 {[%emt 0:00:41]} 25. Qxc7 {[%emt 0:04:10]} Rxc7 {[%emt 0:00:02]} 26. f4 {[%emt 0:00:01]} Nd7 {[%emt 0:00:02]} 27. Kf2 {[%emt 0:00:01]} e5 {[%emt 0:00:16]} 28. Kg3 {[%emt 0:00:01]} exf4+ {[%emt 0:00:13]} 29. Kxf4 {[%emt 0:00:01]} Nf8 {[%emt 0:00:28]} 30. Bf6 {[%emt 0:00:25]} Ne6+ {[%emt 0:00:13]} 31. Kg4 {[%emt 0:00:01]} Rd7 {[%emt 0:00:15]} 32. Rxd7 {[%emt 0:00:58]} Kxd7 {[%emt 0:00:01]} 33. Bf3 {[%emt 0:00:36]} Bxf6 {[%emt 0:02:08]} 34. gxf6 {[%emt 0:00:01]} Nf8 {[%emt 0:00:02]} 35. Nf4 {[%emt 0:00:06]} Ne6 {[%emt 0:00:21]} 36. Nd3 {[%emt 0:00:15]} a5 {[%emt 0:00:46]} 37. Ne5+ {[%emt 0:00:06]} Ke8 {[%emt 0:00:01]} 38. Nc4 {[%emt 0:00:06]} Kd7 {[%emt 0:00:15]} 39. Ne5+ {[%emt 0:00:36]} Ke8 {[%emt 0:00:02]} 40. Nc4 {[%emt 0:00:00]} Kd7 {[%emt 0:00:04]} 41. Nxa5 {[%emt 0:00:18]} Ba6 {[%emt 0:00:02]} 42. e5 {[%emt 0:00:06]} Nc7 {[%emt 0:00:51]} 43. Nb3 {[%emt 0:00:53]} Ke6 {[%emt 0:00:01]} 44. Kf4 {[%emt 0:00:05]} g5+ {[%emt 0:00:01]} 45. Kxg5 {[%emt 0:00:05]} c4 {[%emt 0:00:03]} 46. Nc5+ {[%emt 0:00:18]} Kxe5 {[%emt 0:00:01]} 47. Bh5 {[%emt 0:01:22]} Ne6+ {[%emt 0:02:14]} 48. Nxe6 {[%emt 0:00:02]} Kxe6 {[%emt 0:00:01]} 49. Be2 {[%emt 0:00:04]} Kd5 {[%emt 0:00:09]} 50. c3 {[%emt 0:00:33]} Bc8 {[%emt 0:00:23]} 51. Kh6 {[%emt 0:00:06]} 1-0

[Event "FIDE Open World Rapid 2024"]
[Site "New York"]
[Date "2024.12.27"]
[Round "6.27"]
[White "So, Wesley"]
[Black "Vokhidov, Shamsiddin"]
[Result "1-0"]
[ECO "B13"]
[WhiteElo "2747"]
[BlackElo "2681"]
[Annotator "TA"]
[PlyCount "117"]
[EventDate "2024.12.14"]
[EventType "swiss"]
[EventCountry "USA"]
[SourceTitle "playchess.com"]
[Source "ChessBase"]
[SourceQuality "1"]
[TimeControl "900+10"]

{[%evp 9,117,0,0,0,0,0,6,-14,-6,-13,-14,-33,-27,-37,-18,-37,0,-6,-14,-12,0,-14,-1,-22,-25,-25,-1,-41,-43,-48,-46,-53,-27,-29,-21,-24,-22,-32,-32,-49,-46,-58,-59,-55,-43,-53,-39,-36,-36,-33,-28,-25,-29,-32,-27,-35,-19,-39,-14,-15,0,0,0,-7,0,0,0,0,0,0,0,-42,-38,-42,-18,-25,-30,-33,-30,-30,-16,-23,-25,-14,-16,-31,0,-71,-69,-67,-33,-33,-3,-25,-24,-26,0,0,0,0,0,0,0,0,29991,29992,29992,29993,29993,29994]} 1. d4 {[%emt 0:00:07]} Nf6 {[%emt 0:00:01]} 2. Nc3 {[%emt 0:00:07]} d5 {[%emt 0:00:07]} 3. Bf4 {[%emt 0:00:02]} c5 {[%emt 0:00:59]} 4. e3 {[%emt 0:00:03]} cxd4 {[%emt 0:00:02]} 5. exd4 {[%emt 0:00:02]} a6 {[%emt 0:00:17]} 6. Nf3 {[%emt 0:00:06]} Nc6 {[%emt 0:00:02]} 7. Ne5 {[%emt 0:00:26]} Bd7 {[%emt 0:00:01]} 8. Be3 {[%emt 0:02:57] The position is equal.} e6 {[%emt 0:01:54]} 9. Bd3 {[%emt 0:00:05]} Bd6 {[%emt 0:00:37]} 10. Nxc6 {[%emt 0:03:19]} Bxc6 {[%emt 0:00:15]} 11. O-O {[%emt 0:00:04]} O-O {[%emt 0:00:11]} 12. Re1 {[%emt 0:00:38]} Rc8 {[%emt 0:00:10]} 13. Bg5 {[%emt 0:01:29]} h6 {[%emt 0:00:08]} 14. Bh4 {[%emt 0:00:02]} Be7 {[%emt 0:01:17]} (14... g5 $5 15. Bg3 $8 Bxg3 16. hxg3 Qb6 $11) 15. Qd2 {[%emt 0:01:31]} Qb6 {[%emt 0:00:18][%csl LRb2,LRd4]} 16. Rab1 {[%emt 0:02:04]} Ne4 {[%emt 0:00:48]} (16... Qxd4 $2 17. Bh7+ Nxh7 18. Qxd4 $18) 17. Nxe4 {[%emt 0:00:48]} (17. Bxe4 Bxh4 18. Bf3 Bg5 $17) 17... Bxh4 {[%emt 0:00:03]} 18. Ng3 {[%emt 0:00:06]} Bg5 {[%emt 0:00:40]} (18... Qxd4 $2 19. Bh7+ Kxh7 20. Qxd4 $18) 19. Qd1 {[%emt 0:00:02]} Ba4 {[%emt 0:00:31]} (19... Qxd4 $2 20. Bh7+ Kxh7 21. Qxd4 $18) 20. Ne2 {[%emt 0:00:34]} Rc7 {[%emt 0:01:12]} 21. Nc3 {[%emt 0:00:15]} Bd7 {[%emt 0:00:12][%cal Of8c8]} (21... Qxd4 $2 {loses.} 22. Bh7+ Kxh7 23. Qxd4 $18) 22. Ne2 {[%emt 0:00:02]} Qd6 {[%emt 0:00:42]} 23. c3 {[%emt 0:00:06]} b5 {[%emt 0:00:06]} 24. g3 {[%emt 0:00:17]} b4 {[%emt 0:00:07]} 25. h4 {[%emt 0:00:12]} Bf6 {[%emt 0:00:05]} 26. Qd2 {[%emt 0:00:13]} a5 {[%emt 0:00:19]} 27. Nf4 {[%emt 0:00:19]} bxc3 {[%emt 0:00:48]} 28. bxc3 {[%emt 0:00:00]} Rfc8 {[%emt 0:00:01]} 29. Rec1 {[%emt 0:00:22]} a4 {[%emt 0:01:09]} 30. Bf1 {[%emt 0:00:18]} Qa3 {[%emt 0:01:13][%cal Rc7c3]} 31. Ba6 {[%emt 0:00:06]} Ra8 {[%emt 0:00:15]} 32. Bf1 {[%emt 0:00:05]} Be7 {[%emt 0:01:41]} 33. Rc2 {[%emt 0:00:14]} Bd6 {[%emt 0:00:47]} 34. Ng2 {[%emt 0:00:05][%cal Bf4g2,Bg2e3,Be3g4,Bg4e5][%mdl 32]} Rac8 {[%emt 0:00:12][%cal Rc7c3]} 35. Ba6 {[%emt 0:00:04]} Ra8 {[%emt 0:00:17]} 36. Bf1 {[%emt 0:00:01]} Rac8 {[%emt 0:00:14][%cal Rc7c3]} 37. Ba6 {[%emt 0:00:02]} Rd8 {[%emt 0:00:08]} 38. Ne3 {[%emt 0:00:08]} Be7 {[%emt 0:00:06]} 39. Bd3 {[%emt 0:00:54]} Qd6 {[%emt 0:00:12]} 40. Ng4 {[%emt 0:00:18][%cal Og4h6]} Be8 {[%emt 0:00:36]} 41. Ne5 {[%emt 0:00:26]} Rcc8 {[%emt 0:00:08]} 42. Rcb2 {[%emt 0:00:11]} Qa3 {[%emt 0:00:26]} 43. Rc2 {[%emt 0:00:37]} Rb8 {[%emt 0:00:02] Prevents c4} 44. Rcb2 {[%emt 0:00:02]} Bd6 {[%emt 0:00:26]} 45. Rxb8 {[%emt 0:00:50]} Rxb8 {[%emt 0:00:01]} 46. Rxb8 {[%emt 0:00:01]} Bxb8 {[%emt 0:00:01]} 47. Ng4 {[%emt 0:00:13][%cal Og4h6]} Kf8 {[%emt 0:00:47]} 48. c4 {[%emt 0:00:23]} (48. Nxh6 $11 gxh6 49. Qxh6+ Ke7 50. h5 Qxc3 (50... Qxa2 51. Qg5+ Kd7 52. h6 $18) 51. Qg5+ Kf8 52. Qh6+ Ke7 53. Qg5+ Kf8 54. h6 Qxd3 55. Qg7+ Ke7 56. h7) 48... dxc4 $17 {[%emt 0:00:31]} 49. Bxc4 {[%emt 0:00:01]} Ba7 {[%emt 0:00:32]} (49... Bxg3 $5 50. fxg3 Qxg3+ 51. Qg2 Qc3 $11 (51... Qxh4 52. Qf3 $15)) 50. Qf4 {[%emt 0:01:09][%cal Od4d5] Inhibits Qd6.} Qe7 {[%emt 0:01:07]} (50... Qb4 {keeps more tension.} 51. Ne3 Bc6 52. Qc7 Qb1+) 51. Ne5 {[%emt 0:00:23] [#] Against Qd7. Ng6+ is the strong threat.} Kg8 {[%emt 0:00:01]} 52. Qe4 {[%emt 0:00:02] Wards off Qb7} Qd8 {[%emt 0:00:15]} 53. d5 {[%emt 0:00:13]} exd5 {[%emt 0:00:17]} 54. Bxd5 {[%emt 0:00:01]} Qd6 {[%emt 0:00:17]} 55. Kg2 {[%emt 0:00:13][%cal Oe5f7] Hoping for Nxf7!} Kf8 {[%emt 0:00:02]} 56. Bc6 {[%emt 0:00:42]} Qd4 $2 {[%emt 0:00:38][%mdl 8192] [#]} (56... Bxc6 $11 57. Nxc6 Bxf2 58. Kxf2 Qf6+ 59. Ke1 Qa1+ 60. Kd2 Qxa2+ 61. Qc2 Qd5+ 62. Kc1 Qb5) 57. Ng6+ $1 {[%emt 0:00:06][%mdl 512] White mates.} Kg8 {[%emt 0:00:06]} 58. Qxe8+ {[%emt 0:00:02]} Kh7 {[%emt 0:00:01]} 59. Nf8+ {[%emt 0:00:01] Weighted Error Value: White=0.09 (flawless) /Black=0.19 (very precise) .  Loses game:     	---       	Black=1      Mistake:       	White=1     	---        Inaccurate:     	White=2     	Black=6      OK:         	White=23    	Black=19     Best:        	White=1     	Black=2      Brilliant:      	White=1     	---} 1-0

[Event "FIDE Open World Rapid 2024"]
[Site "New York"]
[Date "2024.12.27"]
[Round "6.27"]
[White "Thavandiran, Shiyam"]
[Black "Bezold, Michael"]
[Result "0-1"]
[ECO "B40"]
[WhiteElo "2410"]
[BlackElo "2469"]
[Annotator "ChessBase"]
[PlyCount "90"]
[EventDate "2024.12.14"]
[EventType "swiss"]
[EventCountry "USA"]
[SourceTitle "playchess.com"]
[Source "ChessBase"]
[SourceQuality "1"]
[TimeControl "900+10"]

1. e4 {[%emt 0:02:24]} c5 {[%emt 0:00:08]} 2. Nf3 {[%emt 0:00:18]} e6 {[%emt 0:00:09]} 3. g3 {[%emt 0:00:11]} Nc6 {[%emt 0:02:18]} 4. Bg2 {[%emt 0:00:18]} Nf6 {[%emt 0:00:09]} 5. Qe2 {[%emt 0:02:02]} d5 {[%emt 0:00:46]} 6. exd5 {[%emt 0:00:03]} Nxd5 {[%emt 0:00:01]} 7. O-O {[%emt 0:00:04]} Be7 {[%emt 0:00:38]} 8. Rd1 {[%emt 0:00:03]} Bf6 {[%emt 0:01:12]} 9. Nc3 {[%emt 0:00:25]} O-O {[%emt 0:00:40]} 10. Ne4 {[%emt 0:00:19]} Nd4 {[%emt 0:02:30]} 11. Nxd4 {[%emt 0:01:02]} cxd4 {[%emt 0:00:08]} 12. c4 {[%emt 0:00:25]} Nb4 {[%emt 0:00:45]} 13. Nxf6+ {[%emt 0:00:10]} Qxf6 {[%emt 0:00:04]} 14. d3 {[%emt 0:00:03]} Nc6 {[%emt 0:01:22]} 15. Rb1 {[%emt 0:02:04]} a5 {[%emt 0:00:08]} 16. b3 {[%emt 0:00:15]} Bd7 {[%emt 0:01:29]} 17. a3 {[%emt 0:00:02]} Rab8 {[%emt 0:00:06]} 18. Bd2 {[%emt 0:02:03]} Rfe8 {[%emt 0:01:04]} 19. Rdc1 {[%emt 0:00:12]} e5 {[%emt 0:00:15]} 20. b4 {[%emt 0:00:14]} axb4 {[%emt 0:00:13]} 21. axb4 {[%emt 0:00:01]} b5 {[%emt 0:00:20]} 22. Ra1 {[%emt 0:02:48]} bxc4 {[%emt 0:00:50]} 23. Rxc4 {[%emt 0:00:02]} Rb6 {[%emt 0:00:30]} 24. Qe1 {[%emt 0:01:14]} h6 {[%emt 0:00:59]} 25. Qc1 {[%emt 0:01:16]} Reb8 {[%emt 0:01:00]} 26. Rb1 {[%emt 0:00:41]} Ne7 {[%emt 0:00:05]} 27. f4 {[%emt 0:00:36]} Ng6 {[%emt 0:00:20]} 28. Rc7 {[%emt 0:00:21]} Bf5 {[%emt 0:00:36]} 29. Bd5 {[%emt 0:00:02]} Be6 {[%emt 0:00:17]} 30. Be4 {[%emt 0:00:07]} exf4 {[%emt 0:00:08]} 31. gxf4 {[%emt 0:00:07]} Rb5 {[%emt 0:00:32]} 32. Rc5 {[%emt 0:00:11]} Nh4 {[%emt 0:00:20]} 33. Rxb5 {[%emt 0:00:16]} Rxb5 {[%emt 0:00:00]} 34. Ra1 {[%emt 0:00:12]} Bf5 {[%emt 0:00:07]} 35. Qc6 {[%emt 0:00:12]} Bxe4 {[%emt 0:00:07]} 36. Ra8+ {[%emt 0:00:08]} Kh7 {[%emt 0:00:02]} 37. Qxe4+ {[%emt 0:00:07]} Rf5 {[%emt 0:00:24]} 38. Be1 {[%emt 0:00:12]} Qg6+ {[%emt 0:00:11]} 39. Bg3 {[%emt 0:00:06]} Qg4 {[%emt 0:00:25]} 40. Kf2 {[%emt 0:00:17]} Ng6 {[%emt 0:00:07]} 41. Qe8 {[%emt 0:00:07]} Nxf4 {[%emt 0:00:02]} 42. Ke1 {[%emt 0:00:11]} Re5+ {[%emt 0:00:11]} 43. Qxe5 {[%emt 0:00:01]} Nxd3+ {[%emt 0:00:00]} 44. Kd2 {[%emt 0:00:03]} Nxe5 {[%emt 0:00:01]} 45. Bxe5 {[%emt 0:00:04]} Qg2+ {[%emt 0:00:01]} 0-1

[Event "FIDE Open World Rapid 2024"]
[Site "New York"]
[Date "2024.12.27"]
[Round "6.28"]
[White "Praggnanandhaa R"]
[Black "Woodward, Andy"]
[Result "1-0"]
[ECO "B90"]
[WhiteElo "2737"]
[BlackElo "2530"]
[Annotator "TA"]
[PlyCount "59"]
[EventDate "2024.12.14"]
[EventType "swiss"]
[EventCountry "USA"]
[SourceTitle "playchess.com"]
[Source "ChessBase"]
[SourceQuality "1"]
[TimeControl "900+10"]

{[%evp 9,59,28,20,0,8,-22,0,0,0,0,0,0,0,0,0,0,6,-23,-12,-41,-33,-126,-125,-114,-93,-136,-116,-129,-106,-127,-88,-93,0,0,0,0,0,0,328,339,581,600,734,728,2003,1916,29986,29987,29987,29988,29995,29996]} 1. e4 {[%emt 0:00:01]} c5 {[%emt 0:00:03]} 2. Nf3 {[%emt 0:00:03]} d6 {[%emt 0:00:02]} 3. d4 {[%emt 0:00:03]} cxd4 {[%emt 0:00:10]} 4. Nxd4 {[%emt 0:00:03]} Nf6 {[%emt 0:00:05]} 5. Nc3 {[%emt 0:00:02]} a6 {[%emt 0:00:03]} 6. Bd2 {[%emt 0:00:16]} e5 {[%emt 0:01:48]} 7. Nf5 {[%emt 0:00:11] [#]} Nxe4 $1 {[%emt 0:04:22]} 8. Nxg7+ {[%emt 0:00:03]} Bxg7 {[%emt 0:00:02]} 9. Nxe4 {[%emt 0:00:02]} d5 {[%emt 0:00:04]} 10. Ng3 {[%emt 0:00:02]} Nc6 {[%emt 0:00:46]} 11. Be2 {[%emt 0:00:03]} Be6 {[%emt 0:00:33]} 12. O-O {[%emt 0:00:28]} f5 {[%emt 0:01:54]} 13. Nh5 {[%emt 0:04:07]} Rg8 {[%emt 0:00:58]} 14. b4 {[%emt 0:02:09][%cal Bb2b4,Bb4b5,Bb5b6][%mdl 32]} Bh8 {[%emt 0:04:43]} 15. f4 {[%emt 0:01:08]} (15. c3 $15) 15... e4 $17 {[%emt 0:00:00]} 16. Rb1 {[%emt 0:00:06]} d4 {[%emt 0:00:00][%cal Ob7b5]} 17. a4 {[%emt 0:02:09]} Ne7 {[%emt 0:00:00]} 18. b5 {[%emt 0:01:05]} a5 {[%emt 0:01:16]} 19. b6 {[%emt 0:00:01]} Nd5 {[%emt 0:00:01][%cal Od8d6]} 20. Ng3 {[%emt 0:00:11][%cal Bh5g3,Bg3e4,Be4g5,Bg5e6][%mdl 32]} Nc3 {[%emt 0:01:03]} (20... Nxb6 21. Rb5 $14) (20... Qc8 $17 21. Bb5+ Kf8) 21. Bxc3 $11 {[%emt 0:00:36]} dxc3 {[%emt 0:00:02]} 22. Bb5+ {[%emt 0:00:02]} Kf8 {[%emt 0:00:07] ...Bd4+ is the strong threat.} 23. Qh5 {[%emt 0:00:07][%csl LRf5,LRh7] And now Qh6+ would win.} Qxb6+ $2 {[%emt 0:00:40][%mdl 8192]} (23... Bd4+ $11 {and Black is okay.} 24. Kh1 Qf6) 24. Kh1 $18 {[%emt 0:00:02]} Qc5 $2 {[%emt 0:00:15] Against Bc4} (24... Rxg3 {was necessary.} 25. hxg3 Qd6) 25. Nxe4 {[%emt 0:00:27]} ({Not} 25. Qxh7 Qe7 26. Qh3 Qf7 $16) 25... Qd5 {[%emt 0:00:01]} 26. Ng5 {[%emt 0:00:11]} Bf6 {[%emt 0:00:21]} 27. Rbd1 {[%emt 0:00:17]} Qa2 {[%emt 0:00:08]} 28. Qh6+ {[%emt 0:00:31]} Ke7 {[%emt 0:00:01]} 29. Nxe6 {[%emt 0:00:03]} Qxc2 {[%emt 0:00:19]} 30. Rd7+ {[%emt 0:00:08]} 1-0

[Event "FIDE Open World Rapid 2024"]
[Site "New York"]
[Date "2024.12.27"]
[Round "6.28"]
[White "Hungaski, Robert"]
[Black "Moradiabadi, Elshan"]
[Result "0-1"]
[ECO "A00"]
[WhiteElo "2477"]
[BlackElo "2512"]
[Annotator "ChessBase"]
[PlyCount "62"]
[EventDate "2024.12.14"]
[EventType "swiss"]
[EventCountry "USA"]
[SourceTitle "playchess.com"]
[Source "ChessBase"]
[SourceQuality "1"]
[TimeControl "900+10"]

1. b4 {[%emt 0:00:03]} e5 {[%emt 0:00:01]} 2. Bb2 {[%emt 0:00:02]} Bxb4 {[%emt 0:00:02]} 3. Bxe5 {[%emt 0:00:02]} Nf6 {[%emt 0:00:01]} 4. c3 {[%emt 0:00:03]} Be7 {[%emt 0:00:15]} 5. g3 {[%emt 0:00:10]} Nc6 {[%emt 0:00:54]} 6. Bxf6 {[%emt 0:00:03]} Bxf6 {[%emt 0:00:01]} 7. Bg2 {[%emt 0:00:13]} O-O {[%emt 0:00:04]} 8. d4 {[%emt 0:00:11]} b5 {[%emt 0:00:37]} 9. e3 {[%emt 0:02:29]} Rb8 {[%emt 0:00:14]} 10. Ne2 {[%emt 0:00:31]} b4 {[%emt 0:01:54]} 11. c4 {[%emt 0:01:37]} Na5 {[%emt 0:01:52]} 12. Nd2 {[%emt 0:00:02]} c5 {[%emt 0:00:27]} 13. Rc1 {[%emt 0:00:57]} cxd4 {[%emt 0:00:07]} 14. exd4 {[%emt 0:00:14]} Re8 {[%emt 0:01:34]} 15. O-O {[%emt 0:00:09]} Bb7 {[%emt 0:00:03]} 16. d5 {[%emt 0:00:36]} Ba6 {[%emt 0:00:46]} 17. Re1 {[%emt 0:00:59]} Bg5 {[%emt 0:00:01]} 18. c5 {[%emt 0:01:23]} b3 {[%emt 0:00:22]} 19. f4 {[%emt 0:01:38]} b2 {[%emt 0:00:01]} 20. Rb1 {[%emt 0:01:25]} Bf6 {[%emt 0:00:43]} 21. Ne4 {[%emt 0:01:12]} Nc4 {[%emt 0:00:13]} 22. Qd3 {[%emt 0:01:58]} Qa5 {[%emt 0:00:54]} 23. N2c3 {[%emt 0:01:00]} Na3 {[%emt 0:01:26]} 24. Nxf6+ {[%emt 0:00:27]} gxf6 {[%emt 0:00:01]} 25. Qd4 {[%emt 0:00:17]} Nxb1 {[%emt 0:00:55]} 26. Rxb1 {[%emt 0:00:08]} Rb4 {[%emt 0:00:47]} 27. Qxf6 {[%emt 0:00:40]} Qxc5+ {[%emt 0:00:01]} 28. Kh1 {[%emt 0:00:01]} Qd4 {[%emt 0:00:01]} 29. Qg5+ {[%emt 0:01:18]} Qg7 {[%emt 0:00:26]} 30. h4 {[%emt 0:00:11]} Qxg5 {[%emt 0:00:07]} 31. hxg5 {[%emt 0:00:01]} Bd3 {[%emt 0:00:01]} 0-1